[Event "Titled Tuesday Blitz November 29 Early 2022"]
[White "Forgacs, Attila Jr."]
[Black "Principe, Gerson"]
[WhiteFideId "773654"]
[BlackFideId "3804550"]
[WhiteElo "2168"]
[BlackElo "2280"]
[Result "0-1"]
[Round "05"]
[TimeControl "180+1"]
[Date "2022.11.30"]
[WhiteClock "0:00:02"]
[BlackClock "0:00:12"]

1. e4 {[%clk 0:03:00]}  c5 {[%clk 0:02:58]} 2. d3 {[%clk 0:03:00]}  Nc6 {[%clk 0:02:56]} 3. g3 {[%clk 0:03:00]}  d5 {[%clk 0:02:50]} 4. Nd2 {[%clk 0:03:00]}  Nf6 {[%clk 0:02:50]} 5. Bg2 {[%clk 0:02:58]}  e6 {[%clk 0:02:50]} 6. f4 {[%clk 0:02:56]}  Be7 {[%clk 0:02:50]} 7. Ngf3 {[%clk 0:02:56]}  O-O {[%clk 0:02:50]} 8. e5 {[%clk 0:02:57]}  Nd7 {[%clk 0:02:50]} 9. c3 {[%clk 0:02:57]}  f6 {[%clk 0:02:44]} 10. exf6 {[%clk 0:02:57]}  Bxf6 {[%clk 0:02:43]} 11. O-O {[%clk 0:02:57]}  e5 {[%clk 0:02:42]} 12. fxe5 {[%clk 0:02:56]}  Ndxe5 {[%clk 0:02:43]} 13. Nxe5 {[%clk 0:02:56]}  Nxe5 {[%clk 0:02:43]} 14. Nf3 {[%clk 0:02:55]}  Nc6 {[%clk 0:02:35]} 15. Bf4 {[%clk 0:02:54]}  Be6 {[%clk 0:02:34]} 16. Qd2 {[%clk 0:02:53]}  Qd7 {[%clk 0:02:29]} 17. Rae1 {[%clk 0:02:52]}  Rae8 {[%clk 0:02:29]} 18. d4 {[%clk 0:02:26]}  cxd4 {[%clk 0:02:26]} 19. Nxd4 {[%clk 0:02:26]}  Nxd4 {[%clk 0:02:20]} 20. cxd4 {[%clk 0:02:27]}  Bf5 {[%clk 0:01:49]} 21. Be5 {[%clk 0:01:41]}  Be4 {[%clk 0:01:09]} 22. Bxf6 {[%clk 0:01:20]}  gxf6 {[%clk 0:00:57]} 23. Bxe4 {[%clk 0:01:10]}  dxe4 {[%clk 0:00:56]} 24. d5 {[%clk 0:01:08]}  f5 {[%clk 0:00:46]} 25. d6 {[%clk 0:00:51]}  Re6 {[%clk 0:00:42]} 26. Qd5 {[%clk 0:00:18]}  Qxd6 {[%clk 0:00:34]} 27. Rxf5 {[%clk 0:00:17]}  Qb6+ {[%clk 0:00:22]} 28. Kh1 {[%clk 0:00:14]}  Rd8 {[%clk 0:00:20]} 29. Rg5+ {[%clk 0:00:12]}  Kh8 {[%clk 0:00:20]} 30. Qc4 {[%clk 0:00:05]}  e3 {[%clk 0:00:15]} 31. Qc3+ {[%clk 0:00:05]}  Qd4 {[%clk 0:00:15]} 32. Rd1 {[%clk 0:00:05]}  e2 {[%clk 0:00:13]} 33. Re1 {[%clk 0:00:03]}  Qxc3 {[%clk 0:00:12]} 34. bxc3 {[%clk 0:00:03]}  Rd1 {[%clk 0:00:12]} 35. Rxd1 {[%clk 0:00:02]}  exd1=Q+ {[%clk 0:00:12]} 0-1


[Site "https://www.chess.com"]

[Event "Titled Tuesday Blitz November 29 Early 2022"]
[White "Georg, Heinz"]
[Black "Tsukerman, Julia"]
[WhiteFideId "4607295"]
[BlackFideId "2621649"]
[WhiteElo "2322"]
[BlackElo "1667"]
[Result "1-0"]
[Round "05"]
[TimeControl "180+1"]
[Date "2022.11.30"]
[WhiteClock "0:01:07"]
[BlackClock "0:00:01"]

1. e4 {[%clk 0:03:00]}  c5 {[%clk 0:02:58]} 2. Nf3 {[%clk 0:03:00]}  d6 {[%clk 0:02:59]} 3. Bb5+ {[%clk 0:03:00]}  Nd7 {[%clk 0:02:58]} 4. O-O {[%clk 0:02:59]}  a6 {[%clk 0:02:57]} 5. Be2 {[%clk 0:02:59]}  Ngf6 {[%clk 0:02:57]} 6. d3 {[%clk 0:02:59]}  e6 {[%clk 0:02:55]} 7. c4 {[%clk 0:02:58]}  Be7 {[%clk 0:02:54]} 8. Nc3 {[%clk 0:02:58]}  Rb8 {[%clk 0:02:51]} 9. b3 {[%clk 0:02:55]}  O-O {[%clk 0:02:50]} 10. Bb2 {[%clk 0:02:54]}  b6 {[%clk 0:02:44]} 11. d4 {[%clk 0:02:53]}  cxd4 {[%clk 0:02:41]} 12. Nxd4 {[%clk 0:02:53]}  Bb7 {[%clk 0:02:41]} 13. Bd3 {[%clk 0:02:48]}  Nc5 {[%clk 0:02:41]} 14. f3 {[%clk 0:02:44]}  Nxd3 {[%clk 0:02:34]} 15. Qxd3 {[%clk 0:02:44]}  d5 {[%clk 0:02:29]} 16. cxd5 {[%clk 0:02:44]}  exd5 {[%clk 0:02:26]} 17. e5 {[%clk 0:02:44]}  Nd7 {[%clk 0:02:23]} 18. f4 {[%clk 0:02:44]}  Bc5 {[%clk 0:02:21]} 19. Rad1 {[%clk 0:02:42]}  Re8 {[%clk 0:02:06]} 20. Rfe1 {[%clk 0:02:27]}  Qh4 {[%clk 0:02:00]} 21. g3 {[%clk 0:02:25]}  Qh3 {[%clk 0:01:55]} 22. Na4 {[%clk 0:02:18]}  Rbc8 {[%clk 0:01:43]} 23. a3 {[%clk 0:02:09]}  Re6 {[%clk 0:01:32]} 24. b4 {[%clk 0:02:01]}  Bxd4+ {[%clk 0:01:12]} 25. Bxd4 {[%clk 0:02:00]}  Rh6 {[%clk 0:01:12]} 26. Re2 {[%clk 0:02:00]}  Bc6 {[%clk 0:01:02]} 27. Nc3 {[%clk 0:01:54]}  Nf8 {[%clk 0:00:39]} 28. f5 {[%clk 0:01:54]}  a5 {[%clk 0:00:17]} 29. b5 {[%clk 0:01:52]}  Bb7 {[%clk 0:00:17]} 30. Bxb6 {[%clk 0:01:49]}  Rxb6 {[%clk 0:00:16]} 31. a4 {[%clk 0:01:43]}  Qg4 {[%clk 0:00:14]} 32. Qe3 {[%clk 0:01:33]}  Qc4 {[%clk 0:00:13]} 33. Qxb6 {[%clk 0:01:23]}  Qxc3 {[%clk 0:00:09]} 34. Qxb7 {[%clk 0:01:21]}  d4 {[%clk 0:00:08]} 35. e6 {[%clk 0:01:16]}  fxe6 {[%clk 0:00:07]} 36. fxe6 {[%clk 0:01:16]}  d3 {[%clk 0:00:07]} 37. Qf7+ {[%clk 0:01:15]}  Kh8 {[%clk 0:00:07]} 38. e7 {[%clk 0:01:15]}  Qc5+ {[%clk 0:00:04]} 39. Rf2 {[%clk 0:01:08]}  Ng6 {[%clk 0:00:01]} 40. e8=Q+ {[%clk 0:01:07]} 1-0


[Site "https://www.chess.com"]

[Event "Titled Tuesday Blitz November 29 Early 2022"]
[White "Ginzburg, Yakov"]
[Black "Jaskolka, Tomasz"]
[WhiteFideId "4157176"]
[BlackFideId "1170791"]
[WhiteElo "2305"]
[BlackElo "2126"]
[Result "1-0"]
[Round "05"]
[TimeControl "180+1"]
[Date "2022.11.30"]
[WhiteClock "0:01:12"]
[BlackClock "0:00:43"]

1. e4 {[%clk 0:02:59]}  Nf6 {[%clk 0:02:56]} 2. e5 {[%clk 0:02:57]}  Nd5 {[%clk 0:02:57]} 3. c4 {[%clk 0:02:57]}  Nb6 {[%clk 0:02:57]} 4. c5 {[%clk 0:02:57]}  Nd5 {[%clk 0:02:57]} 5. Nc3 {[%clk 0:02:57]}  Nxc3 {[%clk 0:02:58]} 6. dxc3 {[%clk 0:02:57]}  e6 {[%clk 0:02:58]} 7. Bd3 {[%clk 0:02:52]}  Bxc5 {[%clk 0:02:53]} 8. Qg4 {[%clk 0:02:51]}  g6 {[%clk 0:02:50]} 9. Bh6 {[%clk 0:02:41]}  f5 {[%clk 0:02:41]} 10. exf6 {[%clk 0:02:38]}  Qxf6 {[%clk 0:02:41]} 11. Nf3 {[%clk 0:02:36]}  Nc6 {[%clk 0:02:39]} 12. O-O-O {[%clk 0:02:31]}  d6 {[%clk 0:02:29]} 13. h4 {[%clk 0:01:55]}  e5 {[%clk 0:02:28]} 14. Qg3 {[%clk 0:01:55]}  Bf5 {[%clk 0:02:16]} 15. Bc4 {[%clk 0:01:51]}  O-O-O {[%clk 0:02:06]} 16. Bg5 {[%clk 0:01:49]}  Qg7 {[%clk 0:02:06]} 17. Bxd8 {[%clk 0:01:48]}  Rxd8 {[%clk 0:02:06]} 18. h5 {[%clk 0:01:43]}  Qh6+ {[%clk 0:01:10]} 19. Qg5 {[%clk 0:01:39]}  Qxg5+ {[%clk 0:01:09]} 20. Nxg5 {[%clk 0:01:39]}  Bxf2 {[%clk 0:01:09]} 21. Be6+ {[%clk 0:01:32]}  Kb8 {[%clk 0:01:02]} 22. Bxf5 {[%clk 0:01:31]}  gxf5 {[%clk 0:00:55]} 23. Nxh7 {[%clk 0:01:30]}  e4 {[%clk 0:00:55]} 24. Kd2 {[%clk 0:01:25]}  Ne5 {[%clk 0:00:52]} 25. Ke2 {[%clk 0:01:23]}  Bb6 {[%clk 0:00:51]} 26. Nf6 {[%clk 0:01:15]}  Rf8 {[%clk 0:00:51]} 27. h6 {[%clk 0:01:13]}  Ng6 {[%clk 0:00:44]} 28. h7 {[%clk 0:01:12]}  Nh8 {[%clk 0:00:43]} 29. Nd7+ {[%clk 0:01:12]} 1-0


[Site "https://www.chess.com"]

[Event "Titled Tuesday Blitz November 29 Early 2022"]
[White "Girel, Joseph"]
[Black "Kuznetsov, Mikhail"]
[WhiteFideId "36033561"]
[BlackFideId "4117190"]
[WhiteElo "2281"]
[BlackElo "1981"]
[Result "1-0"]
[Round "05"]
[TimeControl "180+1"]
[Date "2022.11.30"]
[WhiteClock "0:00:29"]
[BlackClock "0:00:02"]

1. e4 {[%clk 0:02:46]}  c6 {[%clk 0:02:58]} 2. d4 {[%clk 0:02:38]}  d5 {[%clk 0:02:59]} 3. e5 {[%clk 0:02:38]}  Bf5 {[%clk 0:02:56]} 4. h4 {[%clk 0:02:36]}  h5 {[%clk 0:02:53]} 5. Bg5 {[%clk 0:02:37]}  Qb6 {[%clk 0:02:52]} 6. Bd3 {[%clk 0:02:36]}  Qxd4 {[%clk 0:02:51]} 7. Nf3 {[%clk 0:02:35]}  Qg4 {[%clk 0:02:50]} 8. Bxf5 {[%clk 0:02:35]}  Qxf5 {[%clk 0:02:49]} 9. O-O {[%clk 0:02:36]}  e6 {[%clk 0:02:49]} 10. c4 {[%clk 0:02:36]}  Be7 {[%clk 0:02:44]} 11. Qb3 {[%clk 0:02:32]}  b6 {[%clk 0:02:36]} 12. cxd5 {[%clk 0:02:31]}  exd5 {[%clk 0:02:35]} 13. Nc3 {[%clk 0:02:32]}  Bxg5 {[%clk 0:02:27]} 14. hxg5 {[%clk 0:02:10]}  Ne7 {[%clk 0:02:23]} 15. Nd4 {[%clk 0:02:08]}  Qxg5 {[%clk 0:02:17]} 16. f4 {[%clk 0:02:05]}  Qg4 {[%clk 0:02:15]} 17. Rae1 {[%clk 0:01:57]}  O-O {[%clk 0:02:09]} 18. e6 {[%clk 0:01:57]}  Na6 {[%clk 0:01:58]} 19. Qa3 {[%clk 0:01:40]}  Nc5 {[%clk 0:01:57]} 20. b4 {[%clk 0:01:39]}  Nd3 {[%clk 0:01:45]} 21. Nxd5 {[%clk 0:01:08]}  Nxd5 {[%clk 0:01:23]} 22. Qxd3 {[%clk 0:01:06]}  Nxf4 {[%clk 0:01:08]} 23. Qe4 {[%clk 0:01:06]}  Nh3+ {[%clk 0:01:04]} 24. Kh2 {[%clk 0:01:04]}  Qxe4 {[%clk 0:01:04]} 25. Rxe4 {[%clk 0:01:03]}  Ng5 {[%clk 0:01:05]} 26. Re5 {[%clk 0:01:03]}  Nxe6 {[%clk 0:01:03]} 27. Nxc6 {[%clk 0:01:04]}  g6 {[%clk 0:00:48]} 28. Rd1 {[%clk 0:01:03]}  Kg7 {[%clk 0:00:19]} 29. Rd7 {[%clk 0:01:03]}  Kf6 {[%clk 0:00:19]} 30. Re1 {[%clk 0:01:03]}  Rac8 {[%clk 0:00:16]} 31. Rf1+ {[%clk 0:01:01]}  Kg7 {[%clk 0:00:15]} 32. Ne5 {[%clk 0:01:02]}  Rc7 {[%clk 0:00:12]} 33. Rd6 {[%clk 0:01:02]}  Ng5 {[%clk 0:00:10]} 34. b5 {[%clk 0:00:58]}  Ne4 {[%clk 0:00:08]} 35. Rd4 {[%clk 0:00:58]}  Nc5 {[%clk 0:00:04]} 36. a4 {[%clk 0:00:54]}  a6 {[%clk 0:00:04]} 37. Rdf4 {[%clk 0:00:54]}  f6 {[%clk 0:00:03]} 38. Nc4 {[%clk 0:00:52]}  axb5 {[%clk 0:00:03]} 39. axb5 {[%clk 0:00:52]}  Rb7 {[%clk 0:00:02]} 40. Rd4 {[%clk 0:00:50]}  Re8 {[%clk 0:00:02]} 41. Nd6 {[%clk 0:00:50]}  Ree7 {[%clk 0:00:02]} 42. Nxb7 {[%clk 0:00:50]}  Nxb7 {[%clk 0:00:02]} 43. Rc1 {[%clk 0:00:44]}  Nc5 {[%clk 0:00:02]} 44. Rd6 {[%clk 0:00:44]}  Rb7 {[%clk 0:00:02]} 45. Rf1 {[%clk 0:00:43]}  Ne4 {[%clk 0:00:03]} 46. Re6 {[%clk 0:00:42]}  f5 {[%clk 0:00:04]} 47. Rc1 {[%clk 0:00:42]}  Nc5 {[%clk 0:00:03]} 48. Rc6 {[%clk 0:00:42]}  Kf7 {[%clk 0:00:03]} 49. Rd1 {[%clk 0:00:42]}  Ne4 {[%clk 0:00:03]} 50. Rd8 {[%clk 0:00:40]}  Nf6 {[%clk 0:00:02]} 51. Rdd6 {[%clk 0:00:40]}  Ng4+ {[%clk 0:00:03]} 52. Kg3 {[%clk 0:00:38]}  Ne5 {[%clk 0:00:03]} 53. Rc8 {[%clk 0:00:34]}  Kg7 {[%clk 0:00:01]} 54. Kf4 {[%clk 0:00:32]}  Nf7 {[%clk 0:00:02]} 55. Rdc6 {[%clk 0:00:29]} 1-0


[Site "https://www.chess.com"]

[Event "Titled Tuesday Blitz November 29 Early 2022"]
[White "Gjestemoen-VonHirsch, Andre"]
[Black "Makhmudov, Shukhrat"]
[WhiteFideId "1539531"]
[BlackFideId "14200775"]
[WhiteElo "2198"]
[BlackElo "2135"]
[Result "0-1"]
[Round "05"]
[TimeControl "180+1"]
[Date "2022.11.30"]
[WhiteClock "0:00:03"]
[BlackClock "0:00:08"]

1. b3 {[%clk 0:02:58]}  e5 {[%clk 0:02:55]} 2. Bb2 {[%clk 0:02:58]}  Nc6 {[%clk 0:02:55]} 3. e3 {[%clk 0:02:59]}  a6 {[%clk 0:02:52]} 4. c4 {[%clk 0:02:56]}  Nf6 {[%clk 0:02:51]} 5. Nc3 {[%clk 0:02:55]}  d5 {[%clk 0:02:42]} 6. cxd5 {[%clk 0:02:25]}  Nxd5 {[%clk 0:02:41]} 7. a3 {[%clk 0:02:25]}  Be6 {[%clk 0:02:37]} 8. Nf3 {[%clk 0:02:24]}  Be7 {[%clk 0:02:33]} 9. Rc1 {[%clk 0:02:06]}  Bf6 {[%clk 0:02:24]} 10. Ne4 {[%clk 0:02:03]}  Be7 {[%clk 0:02:04]} 11. Nxe5 {[%clk 0:01:53]}  Nxe5 {[%clk 0:02:03]} 12. Bxe5 {[%clk 0:01:54]}  Bxa3 {[%clk 0:01:56]} 13. Bxg7 {[%clk 0:01:51]}  Rg8 {[%clk 0:01:39]} 14. Ra1 {[%clk 0:01:50]}  Bb4 {[%clk 0:01:28]} 15. Bb2 {[%clk 0:01:37]}  Nxe3 {[%clk 0:01:13]} 16. fxe3 {[%clk 0:01:25]}  Qh4+ {[%clk 0:01:12]} 17. Nf2 {[%clk 0:01:23]}  O-O-O {[%clk 0:01:08]} 18. g3 {[%clk 0:01:10]}  Rxd2 {[%clk 0:01:08]} 19. Qxd2 {[%clk 0:01:01]}  Bxd2+ {[%clk 0:01:07]} 20. Kxd2 {[%clk 0:01:02]}  Qb4+ {[%clk 0:01:04]} 21. Bc3 {[%clk 0:00:49]}  Rd8+ {[%clk 0:01:02]} 22. Bd3 {[%clk 0:00:47]}  Qb6 {[%clk 0:00:13]} 23. Ke2 {[%clk 0:00:37]}  Qc6 {[%clk 0:00:10]} 24. Rhc1 {[%clk 0:00:34]}  Qg2 {[%clk 0:00:09]} 25. Be4 {[%clk 0:00:32]}  Bg4+ {[%clk 0:00:08]} 26. Bf3 {[%clk 0:00:02]}  Bxf3+ {[%clk 0:00:08]} 27. Ke1 {[%clk 0:00:03]}  Qg1# {[%clk 0:00:08]} 0-1


[Site "https://www.chess.com"]

[Event "Titled Tuesday Blitz November 29 Early 2022"]
[White "Gonzalez, Francisco Silva"]
[Black "Averjanov, Alexey"]
[WhiteFideId "1512285"]
[BlackFideId "14109867"]
[WhiteElo "2159"]
[BlackElo "2620"]
[Result "0-1"]
[Round "05"]
[TimeControl "180+1"]
[Date "2022.11.30"]
[WhiteClock "0:00:34"]
[BlackClock "0:00:23"]

1. d4 {[%clk 0:02:56]}  d5 {[%clk 0:02:58]} 2. c4 {[%clk 0:02:55]}  dxc4 {[%clk 0:02:58]} 3. e4 {[%clk 0:02:55]}  Nf6 {[%clk 0:02:57]} 4. e5 {[%clk 0:02:54]}  Nd5 {[%clk 0:02:57]} 5. Bxc4 {[%clk 0:02:54]}  Nb6 {[%clk 0:02:57]} 6. Bd3 {[%clk 0:02:54]}  Nc6 {[%clk 0:02:57]} 7. Ne2 {[%clk 0:02:53]}  Nb4 {[%clk 0:02:54]} 8. Be4 {[%clk 0:02:51]}  N4d5 {[%clk 0:02:54]} 9. Nbc3 {[%clk 0:02:48]}  Be6 {[%clk 0:02:50]} 10. O-O {[%clk 0:02:45]}  Qd7 {[%clk 0:02:46]} 11. a4 {[%clk 0:02:45]}  a5 {[%clk 0:02:46]} 12. Nf4 {[%clk 0:02:29]}  Nxf4 {[%clk 0:02:44]} 13. Bxf4 {[%clk 0:02:28]}  c6 {[%clk 0:02:41]} 14. Be3 {[%clk 0:02:23]}  g6 {[%clk 0:02:39]} 15. Bd3 {[%clk 0:02:20]}  Bg7 {[%clk 0:02:36]} 16. Ne4 {[%clk 0:02:19]}  Nd5 {[%clk 0:02:26]} 17. Nc5 {[%clk 0:02:19]}  Qc8 {[%clk 0:02:26]} 18. Qc1 {[%clk 0:02:02]}  O-O {[%clk 0:02:24]} 19. Nxe6 {[%clk 0:01:58]}  Qxe6 {[%clk 0:02:24]} 20. Bc4 {[%clk 0:01:58]}  Rfd8 {[%clk 0:02:20]} 21. Ra3 {[%clk 0:01:50]}  Rd7 {[%clk 0:02:18]} 22. Rb3 {[%clk 0:01:49]}  Rad8 {[%clk 0:02:09]} 23. h3 {[%clk 0:01:48]}  Qf5 {[%clk 0:02:04]} 24. Bxd5 {[%clk 0:01:47]}  cxd5 {[%clk 0:01:47]} 25. Qc5 {[%clk 0:01:45]}  f6 {[%clk 0:01:37]} 26. exf6 {[%clk 0:01:44]}  Bxf6 {[%clk 0:01:37]} 27. Qxa5 {[%clk 0:01:43]}  Rc8 {[%clk 0:01:37]} 28. Rc3 {[%clk 0:01:42]}  Rxc3 {[%clk 0:01:34]} 29. bxc3 {[%clk 0:01:42]}  Qd3 {[%clk 0:01:30]} 30. Qc5 {[%clk 0:01:38]}  Kf7 {[%clk 0:01:22]} 31. Qc8 {[%clk 0:01:36]}  Rd6 {[%clk 0:01:19]} 32. Bh6 {[%clk 0:01:24]}  Rc6 {[%clk 0:01:10]} 33. Qf8+ {[%clk 0:01:18]}  Ke6 {[%clk 0:01:10]} 34. Re1+ {[%clk 0:01:10]}  Kd7 {[%clk 0:01:10]} 35. Qb8 {[%clk 0:01:10]}  Qxc3 {[%clk 0:01:01]} 36. Qxb7+ {[%clk 0:01:10]}  Ke8 {[%clk 0:00:58]} 37. Rc1 {[%clk 0:01:07]}  Qxc1+ {[%clk 0:00:48]} 38. Bxc1 {[%clk 0:01:06]}  Rxc1+ {[%clk 0:00:48]} 39. Kh2 {[%clk 0:01:07]}  Bxd4 {[%clk 0:00:47]} 40. Qxd5 {[%clk 0:01:07]}  Bxf2 {[%clk 0:00:36]} 41. Qa8+ {[%clk 0:00:58]}  Kd7 {[%clk 0:00:37]} 42. Qd5+ {[%clk 0:00:54]}  Ke8 {[%clk 0:00:37]} 43. Qa8+ {[%clk 0:00:54]}  Kd7 {[%clk 0:00:37]} 44. Qf3 {[%clk 0:00:52]}  Bc5 {[%clk 0:00:32]} 45. Qg4+ {[%clk 0:00:47]}  e6 {[%clk 0:00:31]} 46. Kg3 {[%clk 0:00:39]}  Rc3+ {[%clk 0:00:28]} 47. Kh4 {[%clk 0:00:39]}  Be7+ {[%clk 0:00:28]} 48. Qg5 {[%clk 0:00:36]}  Bxg5+ {[%clk 0:00:27]} 49. Kxg5 {[%clk 0:00:34]}  Rg3+ {[%clk 0:00:27]} 50. Kh6 {[%clk 0:00:35]}  Rxg2 {[%clk 0:00:27]} 51. Kxh7 {[%clk 0:00:35]}  Ke7 {[%clk 0:00:26]} 52. h4 {[%clk 0:00:36]}  Kf6 {[%clk 0:00:25]} 53. Kh6 {[%clk 0:00:36]}  Rg4 {[%clk 0:00:23]} 54. Kh7 {[%clk 0:00:36]}  Rxh4+ {[%clk 0:00:23]} 55. Kg8 {[%clk 0:00:36]}  Rxa4 {[%clk 0:00:23]} 56. Kh7 {[%clk 0:00:35]}  Rh4+ {[%clk 0:00:22]} 57. Kg8 {[%clk 0:00:34]}  Rh5 {[%clk 0:00:23]} 0-1


[Site "https://www.chess.com"]

[Event "Titled Tuesday Blitz November 29 Early 2022"]
[White "Gorodetzky, David"]
[Black "Dubov, Daniil"]
[WhiteFideId "2813416"]
[BlackFideId "24126055"]
[WhiteElo "2862"]
[BlackElo "3056"]
[Result "0-1"]
[Round "05"]
[TimeControl "180+1"]
[Date "2022.11.30"]
[WhiteClock "0:00:04"]
[BlackClock "0:00:05"]

1. e4 {[%clk 0:03:00]}  c5 {[%clk 0:02:23]} 2. c3 {[%clk 0:02:55]}  g6 {[%clk 0:02:17]} 3. d4 {[%clk 0:02:54]}  cxd4 {[%clk 0:02:09]} 4. cxd4 {[%clk 0:02:55]}  d5 {[%clk 0:02:09]} 5. e5 {[%clk 0:02:51]}  Nc6 {[%clk 0:02:08]} 6. Nc3 {[%clk 0:02:52]}  Nh6 {[%clk 0:02:07]} 7. h3 {[%clk 0:02:44]}  Bg7 {[%clk 0:02:06]} 8. g4 {[%clk 0:02:42]}  f6 {[%clk 0:02:03]} 9. f4 {[%clk 0:02:41]}  O-O {[%clk 0:02:02]} 10. Bg2 {[%clk 0:02:42]}  fxe5 {[%clk 0:01:20]} 11. fxe5 {[%clk 0:02:41]}  Qb6 {[%clk 0:01:20]} 12. Nf3 {[%clk 0:02:11]}  Nf7 {[%clk 0:01:11]} 13. Na4 {[%clk 0:02:00]}  Qa6 {[%clk 0:01:03]} 14. Be3 {[%clk 0:01:50]}  b6 {[%clk 0:00:58]} 15. Rc1 {[%clk 0:01:38]}  Ncd8 {[%clk 0:00:22]} 16. Nc3 {[%clk 0:01:31]}  Be6 {[%clk 0:00:18]} 17. Qe2 {[%clk 0:01:22]}  Qxe2+ {[%clk 0:00:17]} 18. Nxe2 {[%clk 0:01:20]}  Rc8 {[%clk 0:00:15]} 19. Kd2 {[%clk 0:01:20]}  Bd7 {[%clk 0:00:11]} 20. Rxc8 {[%clk 0:01:01]}  Bxc8 {[%clk 0:00:12]} 21. Rc1 {[%clk 0:00:59]}  Ne6 {[%clk 0:00:12]} 22. Ne1 {[%clk 0:00:52]}  Bb7 {[%clk 0:00:11]} 23. Nd3 {[%clk 0:00:52]}  Rd8 {[%clk 0:00:10]} 24. Nef4 {[%clk 0:00:47]}  Nfg5 {[%clk 0:00:08]} 25. h4 {[%clk 0:00:23]}  Ne4+ {[%clk 0:00:08]} 26. Bxe4 {[%clk 0:00:22]}  Nxf4 {[%clk 0:00:08]} 27. Nxf4 {[%clk 0:00:19]}  dxe4 {[%clk 0:00:09]} 28. Rc7 {[%clk 0:00:19]}  Bc8 {[%clk 0:00:07]} 29. Rxe7 {[%clk 0:00:17]}  Bxg4 {[%clk 0:00:06]} 30. Kc3 {[%clk 0:00:09]}  Rc8+ {[%clk 0:00:06]} 31. Kb3 {[%clk 0:00:08]}  Bd1+ {[%clk 0:00:05]} 32. Ka3 {[%clk 0:00:04]}  Bf8 {[%clk 0:00:06]} 33. Nd5 {[%clk 0:00:04]}  Rd8 {[%clk 0:00:05]} 0-1


[Site "https://www.chess.com"]

[Event "Titled Tuesday Blitz November 29 Early 2022"]
[White "Herman, Daniel"]
[Black "Manelyuk, Daniil"]
[WhiteFideId "30935008"]
[BlackFideId "44173920"]
[WhiteElo "1897"]
[BlackElo "2209"]
[Result "0-1"]
[Round "05"]
[TimeControl "180+1"]
[Date "2022.11.30"]
[WhiteClock "0:00:09"]
[BlackClock "0:01:49"]

1. d4 {[%clk 0:03:00]}  Nf6 {[%clk 0:02:59]} 2. c4 {[%clk 0:03:00]}  c5 {[%clk 0:02:59]} 3. d5 {[%clk 0:03:00]}  b5 {[%clk 0:03:00]} 4. cxb5 {[%clk 0:03:01]}  a6 {[%clk 0:03:00]} 5. bxa6 {[%clk 0:03:02]}  g6 {[%clk 0:03:01]} 6. Nc3 {[%clk 0:03:02]}  Bg7 {[%clk 0:03:02]} 7. e4 {[%clk 0:03:02]}  O-O {[%clk 0:03:02]} 8. Nf3 {[%clk 0:03:01]}  Qa5 {[%clk 0:03:02]} 9. Bd2 {[%clk 0:02:30]}  d6 {[%clk 0:03:02]} 10. Bd3 {[%clk 0:02:11]}  Bxa6 {[%clk 0:03:00]} 11. Bxa6 {[%clk 0:02:01]}  Qxa6 {[%clk 0:02:58]} 12. Qe2 {[%clk 0:02:02]}  Qxe2+ {[%clk 0:02:57]} 13. Kxe2 {[%clk 0:02:03]}  Nbd7 {[%clk 0:02:57]} 14. a4 {[%clk 0:01:56]}  Rfb8 {[%clk 0:02:55]} 15. Rhb1 {[%clk 0:01:41]}  Rb4 {[%clk 0:02:50]} 16. a5 {[%clk 0:01:15]}  Nxe4 {[%clk 0:02:31]} 17. a6 {[%clk 0:00:53]}  Nxd2 {[%clk 0:02:26]} 18. Kxd2 {[%clk 0:00:47]}  Rb6 {[%clk 0:02:22]} 19. a7 {[%clk 0:00:38]}  Rb7 {[%clk 0:02:22]} 20. Kc2 {[%clk 0:00:36]}  Rbxa7 {[%clk 0:02:20]} 21. Rxa7 {[%clk 0:00:37]}  Rxa7 {[%clk 0:02:21]} 22. Re1 {[%clk 0:00:37]}  Nb6 {[%clk 0:02:20]} 23. Nd2 {[%clk 0:00:35]}  Bxc3 {[%clk 0:02:19]} 24. Kxc3 {[%clk 0:00:31]}  Nxd5+ {[%clk 0:02:20]} 25. Kb3 {[%clk 0:00:26]}  Rb7+ {[%clk 0:02:19]} 26. Kc2 {[%clk 0:00:25]}  Nf4 {[%clk 0:02:18]} 27. g3 {[%clk 0:00:21]}  Ne6 {[%clk 0:02:19]} 28. Nf3 {[%clk 0:00:17]}  Kg7 {[%clk 0:02:17]} 29. h4 {[%clk 0:00:17]}  h5 {[%clk 0:02:16]} 30. Ra1 {[%clk 0:00:16]}  Kf6 {[%clk 0:02:16]} 31. Ra6 {[%clk 0:00:14]}  Kf5 {[%clk 0:02:07]} 32. Nd2 {[%clk 0:00:11]}  Nd4+ {[%clk 0:02:07]} 33. Kc1 {[%clk 0:00:09]}  Nb3+ {[%clk 0:01:58]} 34. Nxb3 {[%clk 0:00:09]}  Rxb3 {[%clk 0:01:58]} 35. Ra7 {[%clk 0:00:04]}  Ke6 {[%clk 0:01:58]} 36. Kd1 {[%clk 0:00:02]}  Rxb2 {[%clk 0:01:58]} 37. Ke1 {[%clk 0:00:03]}  c4 {[%clk 0:01:58]} 38. Ra8 {[%clk 0:00:03]}  c3 {[%clk 0:01:58]} 39. Rc8 {[%clk 0:00:04]}  c2 {[%clk 0:01:53]} 40. Kd2 {[%clk 0:00:04]}  d5 {[%clk 0:01:54]} 41. Kc1 {[%clk 0:00:04]}  Ra2 {[%clk 0:01:54]} 42. Rc6+ {[%clk 0:00:02]}  Ke5 {[%clk 0:01:54]} 43. Rc3 {[%clk 0:00:02]}  d4 {[%clk 0:01:54]} 44. Rc7 {[%clk 0:00:02]}  e6 {[%clk 0:01:49]} 45. Rc6 {[%clk 0:00:02]}  d3 {[%clk 0:01:48]} 46. Kd2 {[%clk 0:00:02]}  Ra1 {[%clk 0:01:47]} 47. Kxd3 {[%clk 0:00:02]}  c1=Q {[%clk 0:01:46]} 48. Rxc1 {[%clk 0:00:03]}  Rxc1 {[%clk 0:01:46]} 49. Ke3 {[%clk 0:00:03]}  Ra1 {[%clk 0:01:46]} 50. Kf3 {[%clk 0:00:04]}  Ra2 {[%clk 0:01:46]} 51. Kg2 {[%clk 0:00:05]}  Ke4 {[%clk 0:01:47]} 52. Kh3 {[%clk 0:00:06]}  Kf3 {[%clk 0:01:47]} 53. g4 {[%clk 0:00:07]}  hxg4+ {[%clk 0:01:47]} 54. Kh2 {[%clk 0:00:08]}  Rxf2+ {[%clk 0:01:47]} 55. Kh1 {[%clk 0:00:09]}  g3 {[%clk 0:01:48]} 56. h5 {[%clk 0:00:09]}  Rh2+ {[%clk 0:01:48]} 57. Kg1 {[%clk 0:00:09]}  Rxh5 {[%clk 0:01:48]} 58. Kf1 {[%clk 0:00:09]}  Rh1# {[%clk 0:01:49]} 0-1


[Site "https://www.chess.com"]